Cogmind - Beta 16 @@@ ROGUE MODE // 2025.10.29 @ 19:42:09 Player: Beans Result: Self-destructed Performance ------------- Evolutions (3) 1500 Regions Visited (5) 1000 Robots Destroyed (15) 75 Value Destroyed (453) 453 Prototype IDs (0) 0 Alien Tech Used (0) 0 Bonus (0) 0 TOTAL SCORE: 3028 Bonus ------- None Cogmind --------- Core Integrity 656/700 Matter 224/300 Energy 150/150 System Corruption 0% Temperature Cool (0) Movement Flying (117) Ox1 Location -7/Factory Parts ------- > --- POWER (1) -------- Micro Nuclear Core > --- PROPULSION (4) --- Flight Unit Flight Unit > --- UTILITY (6) ------ Transmission Jammer ECM Suite Hacking Suite > --- WEAPON (2) ------- Light Assault Rifle > --- INVENTORY (5) ---- Light Ion Engine Subdweller Power Source Faulty Improved Cesium-ion Thruster Small Storage Unit Authchip [Device] Peak State ------------ > --- POWER ------------ Micro Nuclear Core > --- PROPULSION ------- Flight Unit Flight Unit Flight Unit VTOL Module > --- UTILITY ---------- Small Storage Unit Transmission Jammer ECM Suite Hacking Suite > --- WEAPON ----------- Light Assault Rifle > --- INVENTORY -------- Light Ion Engine Subdweller Power Source Improved Cesium-ion Thruster Authchip [Device] [Rating: 20] Favorites ----------- Power Subdweller Power Source Engine Subdweller Power Source Power Core Micro Nuclear Core Propulsion Aluminum Leg Leg Aluminum Leg Flight Unit Flight Unit Utility Small Storage Unit Device ECM Suite Storage Small Storage Unit Hackware Hacking Suite Protection Weapon Shielding Weapon Light Cannon Energy Gun EM Pulse Gun Ballistic Gun Light Assault Rifle Ballistic Cannon Light Cannon Build | -11 -10 -10 -10 -9 -7 ------- Run | Yrd Mat Min Sub Rec Fac Slots Evolved 6 | . . . . . 6 Power . | . . . . . . Propulsion 2 | . . . . . 2 Utility 4 | . . . . . 4 Weapon . | . . . . . . Parts Attached 20 | 6 2 2 1 1 8 Power 3 | 1 . . 1 . 1 Engine 2 | 1 . . 1 . . Core 1 | . . . . . 1 Reactor . | . . . . . . Propulsion 8 | 2 . 2 . . 4 Treads . | . . . . . . Leg 4 | 2 . 2 . . . Wheel . | . . . . . . Hover . | . . . . . . Flight 4 | . . . . . 4 Utility 5 | 1 1 . . . 3 Device 2 | . . . . . 2 Storage 1 | 1 . . . . . Processor . | . . . . . . Hackware 1 | . . . . . 1 Protection 1 | . 1 . . . . Artifact . | . . . . . . Weapon 4 | 2 1 . . 1 . Energy Gun 2 | 2 . . . . . Energy Cannon . | . . . . . . Ballistic Gun 1 | . . . . 1 . Ballistic Cannon 1 | . 1 . . . . Launcher . | . . . . . . Special Weapon . | . . . . . . Impact Weapon . | . . . . . . Slashing Weapon . | . . . . . . Piercing Weapon . | . . . . . . Special Melee Weapon . | . . . . . . Unidentified Prototypes . | . . . . . . Parts Lost 6 | . 1 . . 3 2 Power . | . . . . . . Propulsion 3 | . . . . 1 2 Utility 1 | . . . . 1 . Weapon 2 | . 1 . . 1 . Highest Loss Streak 2 | . 1 . . 2 1 To Critical Strikes . | . . . . . . Average Backups 6 | 1 4 7 8 8 4 Power 1 | . 1 1 1 1 1 Propulsion 2 | . 1 3 3 3 1 Utility 2 | . . 2 2 2 1 Weapon . | . 1 1 1 . . Tool/Special . | . . . . . . Unused Backups 6 | . . 1 . 2 3 Power 1 | . . . . . 1 Propulsion 2 | . . 1 . . 1 Utility 3 | . . . . 2 1 Weapon . | . . . . . . Tool/Special . | . . . . . . Average Slot Usage (%) 88 | . 90 85 85 93 65 Engine 12 | . 14 14 14 14 3 Leg 24 | . 28 28 28 25 . Flight 2 | . . . . . 24 Device 1 | . . . . . 12 Storage 13 | . 14 14 14 14 4 Protection 10 | . 5 14 14 13 . Energy Gun 3 | . 17 . . . . Ballistic Gun 6 | . . . . 12 7 Ballistic Cannon 11 | . 10 14 14 12 . Peak Build Rating 20 | 6 8 9 10 11 20 Average Rating 9 | 4 6 7 9 10 17 On Entrance 6 | . 6 7 9 10 8 Avg Prop Armor Cover (%) . | . . . . . . Naked Turns . | . . . . . . Heaviest Build 16 | 13 16 14 14 15 15 Greatest Support 25 | 20 20 25 25 25 16 Greatest Overweight (x) 3 | 3 . . . . . Average Overweight (x) . | . . . . . . Largest Inventory Capacity 8 | 8 8 8 8 8 8 Average Capacity 7 | 7 8 8 8 8 6 Most Carried 8 | 2 7 8 8 8 8 Average Carried 6 | 1 4 7 8 7 4 Final Capacity 8 | 8 8 8 8 8 5 Final Carried 8 | 2 7 8 8 8 5 Class Distribution -------------------- 91% | Mutant 5% | Infiltrator-Sprinter 3% | Infiltrator-Mutant Dominant Class ---------------- Mutant | -10/Materials Mutant | -10/Mines Mutant | -10/Subcaves Mutant | -9/Recycling Infiltrator-Sprinter | -7/Factory Resources | -11 -10 -10 -10 -9 -7 ----------- Run | Yrd Mat Min Sub Rec Fac Matter Collected 550 | 255 74 109 82 30 . Remotely . | . . . . . . Salvage Created 340 | . 60 82 54 144 . Parts 32 | . 10 5 3 14 . Haulers Intercepted . | . . . . . . Recyclers Shooed 1 | . . 1 . . . Parts Field Recycled . | . . . . . . Retrieved Matter . | . . . . . . Parts Self-Destructed 7 | . . . 7 . . Prevented . | . . . . . . Parts Restored . | . . . . . . Kills | -11 -10 -10 -10 -9 -7 ------- Run | Yrd Mat Min Sub Rec Fac Combat Hostiles Destroyed 13 | . 4 3 3 3 . Guns 1 | . . . . 1 . Cannons 11 | . 3 3 3 2 . Classes Destroyed 6 | . 4 1 1 . . Operator 1 | . 1 . . . . Watcher 1 | . 1 . . . . Swarmer 4 | . 3 1 . . . Grunt 2 | . 1 1 . . . Sentry 4 | . . 1 . 3 . Subdweller 3 | . . . 3 . . Best Kill Streak 2 | . 2 1 1 2 . Combat Bots Only 2 | . 2 1 1 2 . Max Kills in Single Turn 1 | . 1 1 1 1 . Gunslinging . | . . . . . . Exploded . | . . . . . . Melee . | . . . . . . Uniques/NPCs Destroyed . | . . . . . . Combat | -11 -10 -10 -10 -9 -7 -------- Run | Yrd Mat Min Sub Rec Fac Hostile Shots Fired 123 | . 31 11 14 28 39 Missed 51 | . 8 5 6 10 22 Hits 72 | . 23 6 8 18 17 Projectile 72 | . 23 6 8 18 17 Critical Strikes 2 | . 1 . . 1 . Damage Taken 902 | . 244 78 170 258 152 Core 214 | . 36 16 20 98 44 Absorbed by Shields . | . . . . . . Redirected to Shielding 53 | . 26 5 5 17 . Core Remaining (%) 66 | 100 . . . 32 . Volleys Fired 75 | . 22 14 18 15 6 Largest 2 | . 1 1 1 2 1 Hottest 50 | . 30 30 30 50 20 Shots Fired 78 | . 22 14 18 18 6 Gun 20 | . . . . 14 6 Cannon 58 | . 22 14 18 4 . Launcher . | . . . . . . Special . | . . . . . . Kinetic 78 | . 22 14 18 18 6 Thermal . | . . . . . . Explosive . | . . . . . . Electromagnetic . | . . . . . . Robot Hit Streak 9 | . 3 5 9 9 3 Robot Miss Streak 2 | . 2 1 2 1 1 Penetration Max . | . . . . . . Secondary Targets . | . . . . . . Shots Hit Robots 55 | . 13 10 12 16 4 Core Hits 25 | . 5 6 5 7 2 Critical Kills . | . . . . . . Critical Parts Destroyed . | . . . . . . Critical Strikes . | . . . . . . Melee Attacks . | . . . . . . Impact . | . . . . . . Slashing . | . . . . . . Piercing . | . . . . . . Sneak Attacks . | . . . . . . Combat Hostiles . | . . . . . . Follow-up Attacks . | . . . . . . Damage Inflicted 854 | . 254 172 224 177 27 Guns 130 | . . . . 103 27 Cannons 720 | . 254 168 224 74 . Explosions . | . . . . . . Melee . | . . . . . . Ramming 4 | . . 4 . . . Kinetic 850 | . 254 168 224 177 27 Thermal . | . . . . . . Explosive . | . . . . . . Electromagnetic . | . . . . . . Impact . | . . . . . . Slashing . | . . . . . . Piercing . | . . . . . . Highest Corruption . | . . . . . . Average Corruption . | . . . . . . Corruption Purged . | . . . . . . Corruption Blocked . | . . . . . . Overload Shots . | . . . . . . Overflow Damage . | . . . . . . Projectiles . | . . . . . . Explosions . | . . . . . . Melee . | . . . . . . Knockbacks 9 | . 6 . 3 . . Impact . | . . . . . . Kinetic 8 | . 5 . 3 . . Secondary 1 | . 1 . . . . Self-Inflicted Damage . | . . . . . . Shots . | . . . . . . Rammed . | . . . . . . Targets Rammed 2 | . . 2 . . . Kicked 2 | . . 2 . . . Crushed . | . . . . . . Highest Temperature 20 | . 1 4 . 20 9 Average Temperature 9 | . 1 4 . 11 7 Received Heat Transfer 291 | . 66 27 18 126 54 Siege Activations . | . . . . . . Martial Activations . | . . . . . . Shielding Activations . | . . . . . . Robots Disrupted . | . . . . . . Combat Hostiles . | . . . . . . Robots Corrupted 1 | . 1 . . . . Combat Hostiles 1 | . 1 . . . . Parts Fried 1 | . 1 . . . . Impact Corruptions 1 | . 1 . . . . Robots Melted . | . . . . . . Combat Hostiles . | . . . . . . Parts Melted . | . . . . . . Heat Transferred . | . . . . . . Parts Sabotaged . | . . . . . . Parts Stolen . | . . . . . . Parts Stripped . | . . . . . . Power Chain Reactions . | . . . . . . Alert | -11 -10 -10 -10 -9 -7 ------- Run | Yrd Mat Min Sub Rec Fac Maximum Alert Level . | . . . . . . Low Security (%) 100 | 100 100 100 . 100 100 Level 1 . | . . . . . . Level 2 . | . . . . . . Level 3 . | . . . . . . Level 4 . | . . . . . . Level 5 . | . . . . . . High Security . | . . . . . . Max Security . | . . . . . . Peak Influence 65 | . 65 60 . 40 15 Initial 8 | . . 8 . . . Average 10 | . 25 23 . 3 1 Influence Increases 355 | . 153 110 . 77 15 Destroy 0b10 Robot/C 200 | . 80 60 . 60 . Destroy 0b10 Robot/NC 10 | . 10 . . . . Destroy Leader 42 | . 22 20 . . . Successful Hack 28 | . 11 . . 17 . Partial Spotted 15 | . . . . . 15 Lose Combat Pursuer 60 | . 30 30 . . . Influence Decreases 355 | . 130 133 . 75 17 Entered New Map 17 | . . 15 . . 2 Time Decay 312 | . 120 118 . 59 15 Lost Part 26 | . 10 . . 16 . Squads Dispatched 3 | . 1 . . . 2 Investigation . | . . . . . . Extermination . | . . . . . . Reinforcement 2 | . 1 . . . 1 Assault . | . . . . . . Garrison 1 | . . . . . 1 Intercept . | . . . . . . Searches Triggered . | . . . . . . Construction Impeded . | . . . . . . Haulers Reinforced . | . . . . . . Active Scanning Responses . | . . . . . . Cargo Convoy Interrupts . | . . . . . . Stealth | -11 -10 -10 -10 -9 -7 --------- Run | Yrd Mat Min Sub Rec Fac Distress Signals 1 | . 1 . . . . Communications Jammed . | . . . . . . Distress Signals . | . . . . . . Times Spotted 31 | . 12 7 3 3 6 Peak Tracking Total 5 | . 5 3 1 2 4 Tactical Retreats 5 | . 2 1 . . 2 ECM-based Alert Blocks 4 | . . . . . 4 Traps | -11 -10 -10 -10 -9 -7 ------- Run | Yrd Mat Min Sub Rec Fac Traps Triggered . | . . . . . . Indirectly . | . . . . . . Trap Hack Attempts . | . . . . . . Triggered . | . . . . . . Disarmed . | . . . . . . Reprogrammed . | . . . . . . Reused . | . . . . . . Traps Extracted . | . . . . . . Installed . | . . . . . . Triggered . | . . . . . . Machines | -11 -10 -10 -10 -9 -7 ---------- Run | Yrd Mat Min Sub Rec Fac Machines Disabled 1 | . . 1 . . . Max in Single Turn 1 | . . 1 . . . Machines Repaired . | . . . . . . Machines Dismantled . | . . . . . . Machines Sabotaged . | . . . . . . Overloaded Fab Kills . | . . . . . . Hacking | -11 -10 -10 -10 -9 -7 --------- Run | Yrd Mat Min Sub Rec Fac Machines Accessed 14 | . 6 . 1 6 1 Terminals 12 | . 6 . . 6 . Fabricators 1 | . . . . . 1 Repair Stations . | . . . . . . Recycling Units . | . . . . . . Scanalyzers . | . . . . . . Garrison Access . | . . . . . . Total Hacks 39 | . 17 . 3 17 2 Successful 16 | . 5 . 3 7 1 Failed 23 | . 12 . . 10 1 Catastrophic 4 | . 2 . . 2 . Database Lockouts . | . . . . . . Manual 30 | . 14 . . 16 . Terminals 34 | . 17 . . 17 . Fabricators 2 | . . . . . 2 Repair Stations . | . . . . . . Recycling Units . | . . . . . . Scanalyzers . | . . . . . . Garrison Access . | . . . . . . Terminal Hacks 8 | . 2 . 3 3 . Record 3 | . . . 3 . . Branch Access Points 2 | . 1 . . 1 . Terminal Index 2 | . 1 . . 1 . Disarm Traps 1 | . . . . 1 . Fabricator Hacks 1 | . . . . . 1 Network Status 1 | . . . . . 1 Repair Station Hacks . | . . . . . . Recycling Unit Hacks . | . . . . . . Scanalyzer . | . . . . . . Garrison Access Hacks . | . . . . . . Unauthorized Hacks 7 | . 3 . . 4 . Terminals 7 | . 3 . . 4 . Botnet 7 | . 3 . . 4 . Fabricators . | . . . . . . Repair Stations . | . . . . . . Recycling Units . | . . . . . . Scanalyzers . | . . . . . . Garrison Access . | . . . . . . Data Cores Recovered . | . . . . . . Used . | . . . . . . Hacking Detections 13 | . 6 . . 6 1 Full Trace Events . | . . . . . . Feedback Events . | . . . . . . Feedback Blocked . | . . . . . . Robot Schematics Acquired . | . . . . . . Robots Built . | . . . . . . Authchips . | . . . . . . Time . | . . . . . . Total Robot Build Rating . | . . . . . . Part Schematics Acquired . | . . . . . . Parts Built . | . . . . . . Authchips . | . . . . . . Time . | . . . . . . Total Part Build Rating . | . . . . . . Part Studies Acquired . | . . . . . . Parts Repaired . | . . . . . . Time . | . . . . . . Parts Recycled . | . . . . . . Recycled Matter . | . . . . . . Retrieved Matter . | . . . . . . Retrieved Components . | . . . . . . Parts Scanalyzed . | . . . . . . Part Schematics Acquired . | . . . . . . Parts Damaged . | . . . . . . Bothacking | -11 -10 -10 -10 -9 -7 ------------ Run | Yrd Mat Min Sub Rec Fac Used RIF Installer . | . . . . . . Robots Hacked . | . . . . . . Non-combat . | . . . . . . Combat . | . . . . . . Robot Hacks Applied . | . . . . . . Relay Couplers Released . | . . . . . . Fabnet Peak Effective % . | . . . . . . Robots Rewired . | . . . . . . Allies Hacked . | . . . . . . Hacks Repelled . | . . . . . . Allies | -11 -10 -10 -10 -9 -7 -------- Run | Yrd Mat Min Sub Rec Fac Total Allies . | . . . . . . Largest Group . | . . . . . . Highest-Rated Group . | . . . . . . Highest-Rated Ally . | . . . . . . Total Orders . | . . . . . . Ally Attacks . | . . . . . . Total Damage . | . . . . . . Kills . | . . . . . . Allies Corrupted . | . . . . . . Allies Melted . | . . . . . . Intel | -11 -10 -10 -10 -9 -7 ------- Run | Yrd Mat Min Sub Rec Fac Active Infowar (turns) 120 | . . . . . 120 Jamming 102 | . . . . . 102 ECM 120 | . . . . . 120 Robot Analysis Total . | . . . . . . Derelict Logs Recovered 2 | . . 1 1 . . Drone Launches . | . . . . . . Drone Recoveries . | . . . . . . Exploration | -11 -10 -10 -10 -9 -7 ------------- Run | Yrd Mat Min Sub Rec Fac Turns Passed 2252 | 52 398 251 289 1067 195 Spaces Moved 1832 | 35 282 170 208 835 302 Core 7 | 7 . . . . . Treads . | . . . . . . Legs 1523 | 28 282 170 208 835 . Wheels . | . . . . . . Hover . | . . . . . . Flight 302 | . . . . . 302 Fastest Speed 29 | 50 120 120 120 120 29 Average Speed 105 | 118 120 120 120 120 30 Slowest Speed 200 | 200 120 120 120 120 34 Overloaded Moves . | . . . . . . Propulsion Burnouts . | . . . . . . Robots Hopped 1 | . . . . . 1 Potential Cave-ins . | . . . . . . Cave-ins Triggered . | . . . . . . Exploration Rate (%) 37 | 3 67 37 14 95 10 Regions Visited 5 Branch Regions 3 Pre-discovered Areas . | . . . . . . Known Exits Taken 2 | . 1 . 1 . . Unknown Exits Taken 3 | 1 . 1 . 1 . Scrap Searched 3 | . . . 3 . . Spaces Dug . | . . . . . . Terrain Destroyed . | . . . . . . Melee . | . . . . . . Projectile . | . . . . . . AOE . | . . . . . . Terrain Rammed . | . . . . . . Walls Destroyed . | . . . . . . Machines Disabled . | . . . . . . Actions | -11 -10 -10 -10 -9 -7 --------- Run | Yrd Mat Min Sub Rec Fac Total 2079 | 42 319 203 230 886 399 Wait 131 | . 9 11 1 31 79 Move 1825 | 34 281 169 207 834 300 Hop 1 | . . . . . 1 Pick Up 15 | 2 4 2 1 3 3 Fast Attach 8 | 6 2 . . . . Attach 8 | . . . . 1 7 Detach 2 | . 1 . . . 1 Swap 4 | . . 2 1 . 1 Drop 8 | . . 3 2 2 1 Fire 75 | . 22 14 18 15 6 Melee . | . . . . . . Ram . | . . . . . . Kick 2 | . . 2 . . . Crush . | . . . . . . Escape Stasis . | . . . . . . Rewire . | . . . . . . Trap . | . . . . . . Miscellaneous . | . . . . . . Route ------- -11/Scrapyard -10/Materials (discovered 3 exits: [*Mat x2] / *Min) -10/Mines (discovered 2 exits: [*Mat] / *Sub) -10/Subcaves (discovered 3 exits: Mat x2 / *Rec) -9/Recycling -7/Factory History --------- Turn | Location | Event 16 | -11/Scrapyard | Discovered new exit (range 15) 53 | -11/Scrapyard | Entered Materials 130 | -10/Materials | Discovered new exit (range 10) 302 | -10/Materials | Build established: Mutant 347 | -10/Materials | Discovered new exit (range 15) 365 | -10/Materials | Identified exit to Mines 451 | -10/Materials | Entered Mines 472 | -10/Mines | Met a Derelict bent on vengeance 574 | -10/Mines | Discovered new exit (range 15) 594 | -10/Mines | Discovered new exit (range 6) 643 | -10/Mines | Joined a pair of Derelicts in attacking an 0b10 outpost 663 | -10/Mines | Learned location of 1 exit from Materials 702 | -10/Mines | Entered Subcaves 706 | -10/Subcaves | Learned Materials trap positions 722 | -10/Subcaves | Disturbed a concealed Subdweller 904 | -10/Subcaves | Visited Clippyterm 908 | -10/Subcaves | Identified exit to Materials 908 | -10/Subcaves | Identified exit to Recycling 991 | -10/Subcaves | Entered Recycling 992 | -9/Recycling | Met a Zionite searching for Scraptown 1326 | -9/Recycling | Discovered new exit (range 13) 1986 | -9/Recycling | Core integrity fell below 50% 2058 | -9/Recycling | Entered Factory 2058 | -7/Factory | Evolved 6 slots: Propulsion x2, Utility x4 2154 | -7/Factory | Garrison activated, responded to threat 2253 | -7/Factory | Self-destructed Last Messages --------------- (76,33) - Loaded: Imp. Carbon-fiber Leg (61,30) - Loaded: Imp. Carbon-fiber Leg (59,141) - Loaded: D-53 Grenadier 02076_ Acquired Transmission Jammer. 02081_ Acquired Mic. Nuclear Core. 02097_ Connecting with Repair Station... 02099_ Sub. Power Source shoots sparks and powers down. 02100_ K-01 Serf cleans the Power Conduit. 02149_ ALERT: All DSF locations entering lockdown mode. 02149_ O-24 Administrator: "IFF HANDSHAKE FAILED. SECURING TERMINAL." 02154_ O-24 Administrator calls for garrison support. 02154_ ALERT: Activating Garrison Access F001. 02157_ ALERT: Hostiles spotted, dispatching reinforcements to Terminal F012. 02180_ VTOL Module destroyed. 02252_ Flight Unit destroyed. Map ----- +----------------------------------------------------+ | ????? # #???????????# ] | | ?????????"""" + #???????????# | | ?????????"""" # ###########????????# | | ?????????"""" # # #????????# | | ?????????"""" !?# # #????????# | | ????????? ?# + #????????# | | ????????#######??# # #????????# | | ?????????????????# # #????????# | | ?????????????????# #? #????????######## | | ?????????????????# #? !! #???????????????? | | ??????????######## #?? !! #???????????????? | | ??????????# #??########???????????????? | | ????????#?# #?? #?????????????????????? | | ??????#? ## #?? #?????????????????????? | | ??? ?? # #?? #?????????????????????? | | ??"" """" # #??Y#?????????????????????? | | ?""" """" # ##########/###???????????????????? | | """" """" # # [ #???????????????????? | | """" """" # # #???????????????????? | | # + """""" #???????????????????? | | ]] + # """""" #???????????????????? | | ]] # # """""" #???????????????????? | | # # """""" #???????????????????? | | ""##### # """""" #???????????????????? | | T"#???# # """""" #???????????????????? | | ""#???# # """"""@ t #???????????????????? | | = #???# # """""" #???????????????????? | | ###+#######???# # """""" #???????????????????? | | ?????????????? # !#???????????????????? | | ??????????????# ##############???????????????????? | | ??????????????? ?????????????????????????????????? | | ??????????????? ?????????????????????????????????? | | ??????????????? ?????????????????????????????????? | | ??????????????? ?????????????????????????????????? | | ??????????????? ?????????????????????????????????? | | ??????????????? ?????????????????????????????????? | | ?????????????????????????????????????????????????? | | ?????????????????????????????????????????????????? | | ?????????????????????????????????????????????????? | | ?????????????????????????????????????????????????? | | ?????????????????????????????????????????????????? | | ?????????????????????????????????????????????????? | | ?????????????????????????????????????????????????? | | ?????????????????????????????????????????????????? | | ?????????????????????????????????????????????????? | | ?????????????????????????????????????????????????? | | ?????????????????????????????????????????????????? | | ?????????????????????????????????????????????????? | | ?????????????????????????????????????????????????? | | ?????????????????????????????????????????????????? | +----------------------------------------------------+ Best States ------------- Heat Dissipation 34 Energy Generation 15 Energy Capacity 250 Matter Stores 300 Matter Capacity 300 Sight Range 16 Terrain Scan Density 10 ECM Strength 1 Jamming Range 12 Weapon Shielding 33 Evasion (%) 64 Offensive Hacking 10 Authchip Count 1 Item Schematics ----------------- None Robot Schematics ------------------ None Fabricated ------------ Nothing Repaired ---------- Nothing Studied --------- None Alien Tech Used ----------------- None Achievements -------------- Bumper Bots Challenges ------------ None Game ------ Seed SeismicReactionMount Manual? 0 Play Time 00:39:06 Cumulative 91.5 hours Start 2025.10.29 @ 19:02:42 End 2025.10.29 @ 19:42:09 Sessions 1 Manual Loads 0 Difficulty Rogue Special Mode None Game No. 88 Rogue 88 Adventurer 0 Explorer 0 Win Type - Total 0 Types 0/0/0/0/0/0/0/0/0/0 Lore% 16 Gallery% 33 Achievement% 23 Wizard Run 0 Options --------- Layout 1 ASCII 1 Keyboard 1 Movement Vi Keybinds 1 Fullscreen 1 Font 32/SmallcapsGlow Map View 50x35 Zoom Use 0% Tactical HUD 1 Map Filters NONE Filters NONE Steam 1 RUN: 356612f3-b34b-4a69-b989-f41c54306f78